[Event "41st Arco Open 2019"]
[Site "Arco"]
[Date "2019.10.11"]
[Round "8"]
[White "Vezzosi, Paolo"]
[Black "Scheftlein, Richard"]
[Result "1/2-1/2"]
[ECO "E46"]
[WhiteElo "2235"]
[BlackElo "2236"]
[Annotator "NA"]
[PlyCount "33"]
[EventDate "2019.10.04"]
[EventType "swiss"]
[EventCountry "ITA"]
[SourceTitle "playchess.com"]
[Source "ChessBase"]
[SourceQuality "1"]
[TimeControl "40/5400+30:1800+30"]

1. c4 {[%emt 0:00:30]} Nf6 {[%emt 0:00:30]} 2. Nc3 {[%emt 0:00:30]} e6 {[%emt 0:01:30]} 3. d4 {[%emt 0:01:30]} Bb4 {[%emt 0:00:00]} 4. e3 {[%emt 0:02:30]} O-O 5. Nge2 {[%emt 0:00:30]} d5 {[%emt 0:00:30]} 6. a3 {[%emt 0:01:30]} Be7 {[%emt 0:00:30]} 7. Nf4 {[%emt 0:02:30]} c6 {[%emt 0:00:30]} 8. Bd3 {[%emt 0:00:00]} Nbd7 {[%emt 0:03:30]} 9. cxd5 {[%emt 0:10:00]} exd5 {[%emt 0:01:30]} 10. O-O {[%emt 0:00:30]} Re8 {[%emt 0:01:30]} 11. f3 {[%emt 0:13:30]} Nb6 {[%emt 0:27:30]} 12. Kh1 {[%emt 0:04:30]} c5 {[%emt 0:00:00]} 13. Bb5 {[%emt 0:08:30]} Bd7 {[%emt 0:00:00]} 14. Bxd7 {[%emt 0:04:30]} Qxd7 {[%emt 0:00:00]} 15. Nd3 {[%emt 0:00:00]} Rac8 {[%emt 0:00:00]} 16. dxc5 {[%emt 0:03:00]} Bxc5 {[%emt 0:00:00]} 17. Nxc5 {[%emt 0:00:30]} 1/2-1/2

[Event "41st Arco Open 2019"]
[Site "Arco"]
[Date "2019.10.11"]
[Round "8"]
[White "Kuhn, Tobias"]
[Black "Tolhuizen, Ludo"]
[Result "1/2-1/2"]
[ECO "D05"]
[WhiteElo "2234"]
[BlackElo "2102"]
[Annotator "NA"]
[PlyCount "165"]
[EventDate "2019.10.04"]
[EventType "swiss"]
[EventCountry "ITA"]
[SourceTitle "playchess.com"]
[Source "ChessBase"]
[SourceQuality "1"]
[TimeControl "40/5400+30:1800+30"]

1. Nf3 {[%emt 0:00:30]} d5 {[%emt 0:01:30]} 2. b3 {[%emt 0:00:00]} c5 {[%emt 0:00:00]} 3. e3 {[%emt 0:01:00]} Nf6 {[%emt 0:04:00]} 4. Bb2 {[%emt 0:00:00]} e6 5. d4 {[%emt 0:00:00]} Nc6 {[%emt 0:01:00]} 6. Nbd2 Bd6 {[%emt 0:00:30]} 7. Bd3 {[%emt 0:08:00]} O-O {[%emt 0:03:30]} 8. O-O Qe7 {[%emt 0:00:30]} 9. Ne5 {[%emt 0:05:00]} cxd4 {[%emt 0:09:30]} 10. exd4 {[%emt 0:01:30]} Qc7 {[%emt 0:00:30]} 11. Nxc6 {[%emt 0:09:30]} bxc6 12. Nf3 {[%emt 0:04:30]} c5 {[%emt 0:00:00]} 13. dxc5 {[%emt 0:19:30]} Bxc5 {[%emt 0:28:30]} 14. Qe2 {[%emt 0:00:00]} Qe7 {[%emt 0:00:00]} 15. a4 {[%emt 0:00:00]} Bb7 {[%emt 0:05:00]} 16. a5 {[%emt 0:00:00]} a6 {[%emt 0:01:30]} 17. Ng5 {[%emt 0:04:00]} h6 {[%emt 0:13:30]} 18. Bxf6 {[%emt 0:02:30]} gxf6 19. Nh7 {[%emt 0:02:30]} Rfe8 {[%emt 0:06:00]} 20. Qg4+ {[%emt 0:18:30]} Kh8 {[%emt 0:01:30]} 21. Qh5 {[%emt 0:00:00]} Kg7 {[%emt 0:00:00]} 22. Ra4 {[%emt 0:00:00]} d4 {[%emt 0:02:00]} 23. Rc4 {[%emt 0:00:00]} f5 {[%emt 0:03:11]} 24. Re1 {[%emt 0:18:20]} Bd5 {[%emt 0:10:50]} 25. Nf6 {[%emt 0:01:43]} Qxf6 {[%emt 0:00:30]} 26. Rxc5 {[%emt 0:00:20]} Rec8 {[%emt 0:04:36]} 27. Rxc8 {[%emt 0:00:30]} Rxc8 {[%emt 0:00:04]} 28. Qe2 {[%emt 0:01:09]} Qg5 {[%emt 0:01:21]} 29. f3 {[%emt 0:00:51]} Bb7 {[%emt 0:00:00]} 30. Kf2 Qh4+ {[%emt 0:00:47]} 31. Kg1 {[%emt 0:01:49]} Qg5 {[%emt 0:00:43]} 32. Qe5+ {[%emt 0:00:26]} Qf6 {[%emt 0:00:25]} 33. f4 Qxe5 {[%emt 0:01:03]} 34. Rxe5 {[%emt 0:01:53]} Be4 35. Bxe4 {[%emt 0:01:01]} fxe4 {[%emt 0:01:24]} 36. Rxe4 {[%emt 0:00:11]} Rxc2 {[%emt 0:00:05]} 37. Rxd4 {[%emt 0:00:29]} Ra2 38. b4 {[%emt 0:00:42]} Rb2 {[%emt 0:01:11]} 39. h3 h5 {[%emt 0:00:43]} 40. Kh2 {[%emt 0:02:29]} Rb3 {[%emt 0:00:00]} 41. Rd6 {[%emt 0:09:37]} Rxb4 {[%emt 0:00:37]} 42. Kg3 {[%emt 0:00:30]} h4+ {[%emt 0:00:30]} 43. Kxh4 {[%emt 0:01:30]} Rxf4+ {[%emt 0:04:30]} 44. Kg3 Ra4 {[%emt 0:03:30]} 45. Rxa6 {[%emt 0:00:00]} Kg6 {[%emt 0:01:30]} 46. Ra8 {[%emt 0:00:30]} e5 {[%emt 0:03:30]} 47. a6 {[%emt 0:02:30]} f5 {[%emt 0:04:11]} 48. a7 {[%emt 0:00:30]} Kg7 {[%emt 0:00:00]} 49. Kf3 {[%emt 0:00:30]} Ra3+ {[%emt 0:00:00]} 50. Ke2 {[%emt 0:03:47]} f4 {[%emt 0:07:46]} 51. Re8 Rxa7 {[%emt 0:00:08]} 52. Rxe5 {[%emt 0:12:05]} Kf6 53. Rd5 {[%emt 0:01:17]} Ra3 {[%emt 0:00:00]} 54. Rd3 Ra4 {[%emt 0:00:00]} 55. Kf3 {[%emt 0:00:51]} Ke5 {[%emt 0:11:32]} 56. Rb3 {[%emt 0:01:37]} Ra5 {[%emt 0:00:00]} 57. Kg4 {[%emt 0:00:00]} Ra2 58. Kf3 {[%emt 0:03:28]} Ra5 {[%emt 0:00:00]} 59. Kg4 {[%emt 0:01:21]} Ra2 60. Rb5+ {[%emt 0:00:00]} Ke4 {[%emt 0:00:59]} 61. g3 {[%emt 0:00:36]} fxg3 {[%emt 0:04:32]} 62. Kxg3 {[%emt 0:00:06]} Ra3+ {[%emt 0:00:00]} 63. Kg4 {[%emt 0:00:00]} Ra1 {[%emt 0:00:00]} 64. h4 {[%emt 0:01:44]} Rg1+ {[%emt 0:01:46]} 65. Kh5 {[%emt 0:00:02]} Kf4 {[%emt 0:00:00]} 66. Kh6 {[%emt 0:00:00]} Ra1 {[%emt 0:00:00]} 67. Rb6 {[%emt 0:01:29]} Kf5 {[%emt 0:01:52]} 68. h5 {[%emt 0:00:23]} Rh1 {[%emt 0:00:00]} 69. Rb2 {[%emt 0:00:00]} Rg1 {[%emt 0:00:38]} 70. Rf2+ {[%emt 0:01:13]} Ke6 {[%emt 0:00:46]} 71. Kh7 {[%emt 0:00:11]} Ke7 {[%emt 0:00:00]} 72. h6 {[%emt 0:00:00]} Rg3 {[%emt 0:00:00]} 73. Ra2 {[%emt 0:00:59]} Kf7 {[%emt 0:01:09]} 74. Ra7+ {[%emt 0:00:10]} Kf8 {[%emt 0:00:00]} 75. Rg7 {[%emt 0:00:00]} Rh3 {[%emt 0:00:00]} 76. Rg1 {[%emt 0:00:29]} Rh2 {[%emt 0:00:33]} 77. Rf1+ {[%emt 0:00:04]} Ke7 {[%emt 0:00:00]} 78. Rf5 {[%emt 0:00:00]} Ke6 {[%emt 0:02:18]} 79. Rf4 {[%emt 0:01:03]} Ke7 {[%emt 0:00:00]} 80. Kg7 {[%emt 0:00:55]} Rg2+ {[%emt 0:00:00]} 81. Kh8 {[%emt 0:00:00]} Rh2 {[%emt 0:00:12]} 82. h7 {[%emt 0:00:17]} Rg2 {[%emt 0:00:00]} 83. Rf7+ {[%emt 0:00:56]} 1/2-1/2

[Event "41st Arco Open 2019"]
[Site "Arco"]
[Date "2019.10.11"]
[Round "8"]
[White "Schroeder, Wilfried"]
[Black "Klings, Peter"]
[Result "1-0"]
[ECO "D02"]
[WhiteElo "2195"]
[BlackElo "2116"]
[Annotator "NA"]
[PlyCount "45"]
[EventDate "2019.10.04"]
[EventType "swiss"]
[EventCountry "ITA"]
[SourceTitle "playchess.com"]
[Source "ChessBase"]
[SourceQuality "1"]
[TimeControl "40/5400+30:1800+30"]

1. Nf3 {[%emt 0:00:30]} Nf6 {[%emt 0:01:30]} 2. g3 {[%emt 0:00:00]} d5 {[%emt 0:00:00]} 3. d4 {[%emt 0:01:00]} c5 {[%emt 0:02:00]} 4. Bg2 {[%emt 0:03:30]} cxd4 5. O-O {[%emt 0:00:30]} h6 {[%emt 0:05:00]} 6. Bf4 {[%emt 0:15:30]} Nc6 {[%emt 0:00:30]} 7. Nxd4 {[%emt 0:02:30]} Qb6 {[%emt 0:07:30]} 8. Nxc6 bxc6 {[%emt 0:00:30]} 9. Nd2 {[%emt 0:06:00]} Bg4 {[%emt 0:10:30]} 10. h3 {[%emt 0:04:30]} Bh5 {[%emt 0:00:30]} 11. g4 {[%emt 0:00:00]} Bg6 {[%emt 0:11:30]} 12. c4 {[%emt 0:06:00]} Qa6 {[%emt 0:00:00]} 13. cxd5 {[%emt 0:04:30]} cxd5 {[%emt 0:00:00]} 14. Rc1 {[%emt 0:06:30]} e6 {[%emt 0:02:30]} 15. Rc7 Be7 {[%emt 0:05:30]} 16. Nc4 {[%emt 0:13:00]} O-O {[%emt 0:06:30]} 17. Ne5 {[%emt 0:01:30]} Bd8 {[%emt 0:04:30]} 18. Nxg6 {[%emt 0:04:30]} fxg6 19. Rc2 {[%emt 0:01:30]} Qxa2 {[%emt 0:13:00]} 20. Bd6 {[%emt 0:03:30]} Re8 {[%emt 0:03:30]} 21. Qd3 {[%emt 0:00:00]} g5 {[%emt 0:03:30]} 22. Ba3 {[%emt 0:01:00]} Be7 {[%emt 0:00:00]} 23. b4 {[%emt 0:01:30]} 1-0

[Event "41st Arco Open 2019"]
[Site "Arco"]
[Date "2019.10.11"]
[Round "8"]
[White "Sprotte, Norbert"]
[Black "Trauth, Michael"]
[Result "0-1"]
[ECO "A38"]
[WhiteElo "2193"]
[BlackElo "2073"]
[Annotator "NA"]
[PlyCount "128"]
[EventDate "2019.10.04"]
[EventType "swiss"]
[EventCountry "ITA"]
[SourceTitle "playchess.com"]
[Source "ChessBase"]
[SourceQuality "1"]
[TimeControl "40/5400+30:1800+30"]

1. Nf3 {[%emt 0:00:30]} c5 {[%emt 0:01:30]} 2. c4 {[%emt 0:00:00]} g6 {[%emt 0:00:00]} 3. g3 {[%emt 0:00:00]} Bg7 {[%emt 0:01:00]} 4. Bg2 {[%emt 0:00:30]} Nc6 5. Nc3 {[%emt 0:00:30]} d6 {[%emt 0:02:00]} 6. O-O {[%emt 0:00:30]} Nf6 {[%emt 0:00:30]} 7. d4 {[%emt 0:00:30]} cxd4 {[%emt 0:00:30]} 8. Nxd4 {[%emt 0:03:30]} Bd7 {[%emt 0:00:30]} 9. Nc2 {[%emt 0:00:00]} O-O {[%emt 0:00:30]} 10. b3 {[%emt 0:05:00]} a6 {[%emt 0:01:30]} 11. Bd2 {[%emt 0:02:30]} Rb8 {[%emt 0:02:30]} 12. Rc1 {[%emt 0:03:30]} b5 {[%emt 0:03:30]} 13. cxb5 {[%emt 0:01:30]} axb5 14. e4 {[%emt 0:01:30]} Qb6 {[%emt 0:07:00]} 15. Nd5 Nxd5 {[%emt 0:00:30]} 16. exd5 {[%emt 0:14:00]} Ne5 {[%emt 0:00:00]} 17. h3 Bf5 {[%emt 0:15:00]} 18. Nb4 {[%emt 0:09:00]} Rfc8 {[%emt 0:07:30]} 19. g4 {[%emt 0:14:30]} Rxc1 {[%emt 0:02:30]} 20. Bxc1 {[%emt 0:03:30]} Bc8 21. Be3 {[%emt 0:06:30]} Qa5 {[%emt 0:04:00]} 22. Qd2 {[%emt 0:00:00]} Bb7 {[%emt 0:06:30]} 23. Rc1 {[%emt 0:05:00]} Rc8 {[%emt 0:05:30]} 24. Rxc8+ {[%emt 0:00:30]} Bxc8 {[%emt 0:00:00]} 25. f4 {[%emt 0:08:30]} Nd7 {[%emt 0:19:00]} 26. Nc6 {[%emt 0:00:30]} Qxd2 {[%emt 0:00:00]} 27. Bxd2 {[%emt 0:00:30]} Kf8 {[%emt 0:00:00]} 28. Kf2 {[%emt 0:05:24]} f5 {[%emt 0:00:00]} 29. g5 Nc5 {[%emt 0:00:00]} 30. Ke3 {[%emt 0:02:19]} Bb7 {[%emt 0:00:00]} 31. Bf1 {[%emt 0:03:21]} Ne4 {[%emt 0:02:00]} 32. Bxb5 {[%emt 0:00:00]} Bc3 {[%emt 0:04:43]} 33. Bc1 {[%emt 0:04:45]} Be1 {[%emt 0:11:15]} 34. a4 {[%emt 0:01:39]} Nc3 {[%emt 0:00:00]} 35. Bc4 {[%emt 0:00:00]} e6 {[%emt 0:00:00]} 36. Bd2 {[%emt 0:04:35]} exd5 {[%emt 0:05:01]} 37. Bxe1 {[%emt 0:00:26]} dxc4 {[%emt 0:00:00]} 38. Na5 {[%emt 0:00:00]} Nd5+ {[%emt 0:00:00]} 39. Kd4 {[%emt 0:02:12]} cxb3 {[%emt 0:04:01]} 40. Bc3 {[%emt 0:01:49]} Ba8 {[%emt 0:00:00]} 41. Nc4 {[%emt 0:01:30]} Nxf4 {[%emt 0:02:00]} 42. a5 {[%emt 0:04:30]} Ne6+ {[%emt 0:00:30]} 43. Kd3 {[%emt 0:00:30]} Be4+ {[%emt 0:02:30]} 44. Ke3 {[%emt 0:03:30]} d5 {[%emt 0:08:30]} 45. Nb2 {[%emt 0:03:30]} f4+ {[%emt 0:00:00]} 46. Kd2 {[%emt 0:00:49]} Nxg5 {[%emt 0:00:00]} 47. Bd4 {[%emt 0:03:01]} Ne6 {[%emt 0:00:00]} 48. Kc3 Nc7 {[%emt 0:03:48]} 49. Kxb3 {[%emt 0:04:46]} Ke7 50. Be5 {[%emt 0:03:08]} f3 {[%emt 0:00:32]} 51. Nd1 Kd7 {[%emt 0:00:18]} 52. Kc3 {[%emt 0:03:08]} Kc6 {[%emt 0:11:36]} 53. Kd2 {[%emt 0:01:22]} Ne6 {[%emt 0:00:00]} 54. Ke3 {[%emt 0:00:00]} Ng5 {[%emt 0:00:00]} 55. Nf2 {[%emt 0:01:50]} Kb5 {[%emt 0:03:26]} 56. Bg3 {[%emt 0:01:36]} Bf5 {[%emt 0:00:00]} 57. h4 {[%emt 0:00:00]} Ne4 {[%emt 0:00:00]} 58. Nxe4 {[%emt 0:02:35]} Bxe4 {[%emt 0:03:04]} 59. Bc7 {[%emt 0:00:29]} d4+ {[%emt 0:00:00]} 60. Kf2 {[%emt 0:00:00]} Kc4 {[%emt 0:00:00]} 61. a6 {[%emt 0:01:11]} Kb3 {[%emt 0:03:44]} 62. Be5 {[%emt 0:02:33]} d3 {[%emt 0:00:00]} 63. Ke3 {[%emt 0:00:00]} Kc2 {[%emt 0:00:00]} 64. Kxe4 {[%emt 0:00:42]} f2 {[%emt 0:00:00]} 0-1

[Event "41st Arco Open 2019"]
[Site "Arco"]
[Date "2019.10.11"]
[Round "8"]
[White "Ager, Josef"]
[Black "Sarkar, Justin"]
[Result "0-1"]
[ECO "A23"]
[WhiteElo "2154"]
[BlackElo "2350"]
[Annotator "NA"]
[PlyCount "37"]
[EventDate "2019.10.04"]
[EventType "swiss"]
[EventCountry "ITA"]
[SourceTitle "playchess.com"]
[Source "ChessBase"]
[SourceQuality "1"]
[TimeControl "40/5400+30:1800+30"]

1. c4 {[%emt 0:00:30]} e5 {[%emt 0:01:30]} 2. Nc3 {[%emt 0:00:00]} Nf6 {[%emt 0:00:00]} 3. g3 {[%emt 0:00:00]} c6 {[%emt 0:07:00]} 4. d4 {[%emt 0:02:30]} e4 5. Bg5 {[%emt 0:02:30]} Bb4 {[%emt 0:02:00]} 6. Qb3 Bxc3+ {[%emt 0:00:30]} 7. Qxc3 {[%emt 0:02:00]} O-O {[%emt 0:06:30]} 8. Bh3 h6 {[%emt 0:00:30]} 9. Bf4 {[%emt 0:07:00]} d5 {[%emt 0:01:30]} 10. Bxc8 {[%emt 0:00:30]} Qxc8 {[%emt 0:00:30]} 11. Bd6 {[%emt 0:01:30]} Re8 {[%emt 0:00:00]} 12. h4 {[%emt 0:00:30]} dxc4 {[%emt 0:05:00]} 13. Qxc4 {[%emt 0:00:30]} Nd5 {[%emt 0:00:30]} 14. e3 {[%emt 0:01:30]} Nd7 {[%emt 0:04:30]} 15. a4 {[%emt 0:12:30]} a5 {[%emt 0:01:30]} 16. Ne2 {[%emt 0:00:00]} N7f6 {[%emt 0:00:30]} 17. Be5 {[%emt 0:00:00]} Ng4 {[%emt 0:01:30]} 18. Bf4 {[%emt 0:00:00]} Qe6 19. Nc3 {[%emt 0:00:00]} 0-1

[Event "41st Arco Open 2019"]
[Site "Arco"]
[Date "2019.10.11"]
[Round "8"]
[White "Medancic, Rikard"]
[Black "Favaloro, Andrea"]
[Result "1/2-1/2"]
[ECO "A06"]
[WhiteElo "2146"]
[BlackElo "2338"]
[Annotator "NA"]
[PlyCount "54"]
[EventDate "2019.10.04"]
[EventType "swiss"]
[EventCountry "ITA"]
[SourceTitle "playchess.com"]
[Source "ChessBase"]
[SourceQuality "1"]
[TimeControl "40/5400+30:1800+30"]

1. Nf3 {[%emt 0:03:30]} d5 {[%emt 0:00:30]} 2. b3 {[%emt 0:00:00]} Bg4 {[%emt 0:03:30]} 3. Bb2 {[%emt 0:01:00]} Bxf3 {[%emt 0:00:00]} 4. exf3 {[%emt 0:00:30]} e6 {[%emt 0:00:00]} 5. f4 {[%emt 0:00:30]} Nf6 {[%emt 0:00:00]} 6. g3 Be7 {[%emt 0:00:00]} 7. Bg2 {[%emt 0:00:00]} O-O {[%emt 0:00:30]} 8. O-O c5 {[%emt 0:00:30]} 9. d3 {[%emt 0:07:00]} Nc6 {[%emt 0:00:00]} 10. c4 {[%emt 0:00:30]} Ne8 {[%emt 0:02:00]} 11. Nc3 {[%emt 0:11:30]} Bf6 {[%emt 0:20:30]} 12. Re1 {[%emt 0:03:30]} Nc7 {[%emt 0:00:00]} 13. Rb1 {[%emt 0:03:30]} Nd4 {[%emt 0:00:00]} 14. Ne2 {[%emt 0:02:30]} Nxe2+ {[%emt 0:00:00]} 15. Qxe2 {[%emt 0:00:00]} Bxb2 {[%emt 0:00:00]} 16. Rxb2 {[%emt 0:01:00]} Qf6 {[%emt 0:09:30]} 17. b4 {[%emt 0:00:30]} cxb4 {[%emt 0:01:30]} 18. Rxb4 {[%emt 0:05:30]} b6 {[%emt 0:14:30]} 19. cxd5 {[%emt 0:12:30]} Nxd5 {[%emt 0:00:00]} 20. Rc4 {[%emt 0:01:30]} Rad8 {[%emt 0:00:00]} 21. Qc2 {[%emt 0:04:30]} Rd7 {[%emt 0:01:30]} 22. Re5 Qd8 {[%emt 0:01:30]} 23. f5 {[%emt 0:05:00]} exf5 {[%emt 0:01:30]} 24. Rxf5 {[%emt 0:00:30]} Nc7 {[%emt 0:00:00]} 25. d4 {[%emt 0:09:30]} b5 {[%emt 0:28:41]} 26. Rcc5 {[%emt 0:12:11]} Ne6 {[%emt 0:00:00]} 27. Rcd5 {[%emt 0:00:00]} Rxd5 {[%emt 0:00:00]} 1/2-1/2

[Event "41st Arco Open 2019"]
[Site "Arco"]
[Date "2019.10.11"]
[Round "8"]
[White "Cardili, Mariano"]
[Black "Pasini, Nicolo"]
[Result "1/2-1/2"]
[ECO "E99"]
[WhiteElo "2079"]
[BlackElo "2234"]
[Annotator "NA"]
[PlyCount "40"]
[EventDate "2019.10.04"]
[EventType "swiss"]
[EventCountry "ITA"]
[SourceTitle "playchess.com"]
[Source "ChessBase"]
[SourceQuality "1"]
[TimeControl "40/5400+30:1800+30"]

1. d4 {[%emt 0:00:30]} Nf6 {[%emt 0:07:30]} 2. c4 {[%emt 0:00:00]} g6 {[%emt 0:00:00]} 3. Nc3 {[%emt 0:00:00]} Bg7 {[%emt 0:00:00]} 4. e4 {[%emt 0:00:30]} d6 5. Nf3 {[%emt 0:00:30]} O-O {[%emt 0:00:00]} 6. Be2 e5 {[%emt 0:00:30]} 7. O-O {[%emt 0:01:00]} Nc6 {[%emt 0:00:30]} 8. d5 {[%emt 0:05:30]} Ne7 {[%emt 0:00:00]} 9. Ne1 {[%emt 0:00:00]} Nd7 {[%emt 0:00:00]} 10. Be3 {[%emt 0:00:00]} f5 {[%emt 0:00:00]} 11. f3 {[%emt 0:00:00]} f4 {[%emt 0:00:00]} 12. Bf2 {[%emt 0:00:00]} g5 {[%emt 0:00:30]} 13. a4 {[%emt 0:00:00]} Rf6 {[%emt 0:00:00]} 14. a5 {[%emt 0:00:00]} Rh6 {[%emt 0:07:00]} 15. Nb5 {[%emt 0:03:30]} a6 {[%emt 0:07:30]} 16. Na7 {[%emt 0:05:30]} Rxa7 {[%emt 0:00:00]} 17. Bxa7 {[%emt 0:10:30]} Qe8 {[%emt 0:04:00]} 18. Nd3 {[%emt 0:00:00]} Qh5 {[%emt 0:00:30]} 19. h3 {[%emt 0:00:00]} Nf6 {[%emt 0:00:00]} 20. Nf2 {[%emt 0:00:00]} Qh4 {[%emt 0:00:00]} 1/2-1/2

[Event "41st Arco Open 2019"]
[Site "Arco"]
[Date "2019.10.11"]
[Round "8"]
[White "Knors, Rudi"]
[Black "Luciani, Carlo"]
[Result "1/2-1/2"]
[ECO "E84"]
[WhiteElo "2075"]
[BlackElo "2197"]
[Annotator "NA"]
[PlyCount "52"]
[EventDate "2019.10.04"]
[EventType "swiss"]
[EventCountry "ITA"]
[SourceTitle "playchess.com"]
[Source "ChessBase"]
[SourceQuality "1"]
[TimeControl "40/5400+30:1800+30"]

1. d4 {[%emt 0:00:30]} Nf6 {[%emt 0:00:30]} 2. c4 {[%emt 0:00:30]} g6 {[%emt 0:00:00]} 3. Nc3 {[%emt 0:00:00]} Bg7 {[%emt 0:00:00]} 4. e4 {[%emt 0:00:00]} d6 5. f3 {[%emt 0:00:30]} O-O {[%emt 0:01:00]} 6. Be3 {[%emt 0:00:30]} Nc6 {[%emt 0:29:30]} 7. Qd2 {[%emt 0:01:30]} a6 {[%emt 0:00:00]} 8. Nge2 {[%emt 0:00:00]} Rb8 {[%emt 0:00:00]} 9. Rc1 {[%emt 0:03:00]} Bd7 {[%emt 0:00:00]} 10. Nd1 {[%emt 0:01:30]} e6 {[%emt 0:00:00]} 11. g3 {[%emt 0:03:30]} b6 {[%emt 0:00:00]} 12. Bg2 {[%emt 0:04:30]} Ne7 {[%emt 0:00:00]} 13. O-O {[%emt 0:01:30]} c5 {[%emt 0:00:00]} 14. Nf2 {[%emt 0:01:30]} Qc7 {[%emt 0:00:00]} 15. Rfd1 {[%emt 0:02:30]} Rfd8 {[%emt 0:00:00]} 16. Bg5 {[%emt 0:10:30]} Nc6 {[%emt 0:05:00]} 17. Qf4 Nh5 {[%emt 0:11:30]} 18. Bxd8 {[%emt 0:10:00]} Rxd8 19. Qd2 {[%emt 0:08:30]} Nxd4 {[%emt 0:02:00]} 20. Nxd4 {[%emt 0:04:30]} Bxd4 21. Kh1 {[%emt 0:01:30]} Bc6 {[%emt 0:04:00]} 22. Nd3 {[%emt 0:02:30]} Nf6 {[%emt 0:00:00]} 23. Qf4 {[%emt 0:08:30]} Nh5 {[%emt 0:00:00]} 24. Qd2 {[%emt 0:00:30]} Nf6 {[%emt 0:00:00]} 25. Qf4 {[%emt 0:02:30]} Nh5 {[%emt 0:00:00]} 26. Qd2 {[%emt 0:00:00]} Nf6 {[%emt 0:00:00]} 1/2-1/2

[Event "41st Arco Open 2019"]
[Site "Arco"]
[Date "2019.10.11"]
[Round "8"]
[White "Fehr, Axel"]
[Black "Horvath, Jozsef"]
[Result "0-1"]
[ECO "C00"]
[WhiteElo "2045"]
[BlackElo "2450"]
[Annotator "ChessBase"]
[PlyCount "73"]
[EventDate "2019.10.04"]
[EventType "swiss"]
[EventCountry "ITA"]
[SourceTitle "playchess.com"]
[Source "ChessBase"]
[SourceQuality "1"]
[TimeControl "40/5400+30:1800+30"]

1. e4 {[%emt 0:00:30]} c5 {[%emt 0:00:30]} 2. Nf3 {[%emt 0:00:00]} e6 {[%emt 0:03:30]} 3. Qe2 {[%emt 0:04:00]} Nc6 {[%emt 0:00:30]} 4. g3 {[%emt 0:02:30]} g6 5. Bg2 {[%emt 0:03:30]} Bg7 {[%emt 0:10:00]} 6. O-O Nge7 {[%emt 0:00:30]} 7. d3 {[%emt 0:09:00]} d6 {[%emt 0:06:30]} 8. c3 {[%emt 0:03:30]} O-O {[%emt 0:01:30]} 9. Na3 {[%emt 0:06:30]} e5 {[%emt 0:16:30]} 10. Nh4 {[%emt 0:27:30]} Be6 {[%emt 0:05:30]} 11. f4 {[%emt 0:06:30]} Qd7 {[%emt 0:01:30]} 12. Be3 {[%emt 0:03:30]} exf4 {[%emt 0:03:30]} 13. gxf4 {[%emt 0:02:30]} f5 14. Nf3 {[%emt 0:05:30]} h6 {[%emt 0:08:00]} 15. e5 {[%emt 0:00:00]} dxe5 {[%emt 0:14:30]} 16. Nxe5 {[%emt 0:15:11]} Nxe5 17. fxe5 {[%emt 0:00:10]} Rac8 {[%emt 0:04:00]} 18. d4 {[%emt 0:01:48]} cxd4 {[%emt 0:00:30]} 19. Bxd4 {[%emt 0:00:41]} b6 {[%emt 0:03:51]} 20. Rad1 {[%emt 0:00:25]} Qe8 {[%emt 0:05:26]} 21. c4 {[%emt 0:02:39]} f4 {[%emt 0:10:14]} 22. b3 {[%emt 0:01:07]} g5 {[%emt 0:00:00]} 23. Nb5 {[%emt 0:00:00]} Nf5 {[%emt 0:00:00]} 24. Nd6 {[%emt 0:03:04]} Nxd4 {[%emt 0:03:06]} 25. Rxd4 {[%emt 0:00:02]} Qd7 {[%emt 0:00:00]} 26. Rfd1 {[%emt 0:00:16]} Bg4 {[%emt 0:00:46]} 27. Qe4 {[%emt 0:01:55]} Rc5 {[%emt 0:01:46]} 28. e6 {[%emt 0:00:21]} Qxe6 {[%emt 0:00:21]} 29. Qxe6+ {[%emt 0:00:00]} Bxe6 {[%emt 0:00:06]} 30. R4d3 {[%emt 0:00:00]} g4 {[%emt 0:00:00]} 31. Ne4 {[%emt 0:00:07]} Re5 {[%emt 0:01:00]} 32. Nc3 {[%emt 0:01:20]} f3 {[%emt 0:00:30]} 33. Bf1 {[%emt 0:00:00]} h5 {[%emt 0:00:00]} 34. Nd5 {[%emt 0:00:10]} Bh8 {[%emt 0:01:00]} 35. Re3 {[%emt 0:01:20]} f2+ {[%emt 0:00:30]} 36. Kg2 {[%emt 0:00:00]} Rxe3 {[%emt 0:00:00]} 37. Nxe3 {[%emt 0:00:10]} 0-1

[Event "41st Arco Open 2019"]
[Site "Arco"]
[Date "2019.10.12"]
[Round "9"]
[White "Halkias, Stelios"]
[Black "Okhotnik, Vladimir"]
[Result "1-0"]
[ECO "B15"]
[WhiteElo "2530"]
[BlackElo "2352"]
[Annotator "ChessBase"]
[PlyCount "69"]
[EventDate "2019.10.04"]
[EventType "swiss"]
[EventCountry "ITA"]
[SourceTitle "playchess.com"]
[Source "ChessBase"]
[SourceQuality "1"]
[TimeControl "40/5400+30:1800+30"]

1. Nf3 {[%emt 0:00:30]} g6 {[%emt 0:00:30]} 2. d4 {[%emt 0:01:30]} Bg7 {[%emt 0:01:30]} 3. e4 {[%emt 0:00:30]} c6 {[%emt 0:00:00]} 4. Nc3 {[%emt 0:03:30]} d5 5. h3 {[%emt 0:00:30]} Nf6 {[%emt 0:02:30]} 6. e5 {[%emt 0:08:30]} Ne4 {[%emt 0:00:30]} 7. Bd3 {[%emt 0:00:30]} Nxc3 {[%emt 0:00:00]} 8. bxc3 c5 {[%emt 0:00:00]} 9. O-O {[%emt 0:01:00]} c4 {[%emt 0:00:00]} 10. Be2 {[%emt 0:00:30]} Qa5 {[%emt 0:00:00]} 11. Bd2 {[%emt 0:03:30]} Bd7 {[%emt 0:27:30]} 12. a4 {[%emt 0:12:30]} Bxa4 {[%emt 0:00:00]} 13. e6 {[%emt 0:01:30]} f6 {[%emt 0:00:00]} 14. Nh2 {[%emt 0:03:30]} Nc6 {[%emt 0:00:00]} 15. Ng4 {[%emt 0:00:00]} Nd8 {[%emt 0:00:00]} 16. Ne3 {[%emt 0:21:00]} Nxe6 {[%emt 0:00:00]} 17. Nxd5 {[%emt 0:00:30]} Qxd5 {[%emt 0:00:00]} 18. Rxa4 {[%emt 0:05:30]} Qd7 {[%emt 0:41:30]} 19. Qa1 {[%emt 0:09:30]} b5 {[%emt 0:00:00]} 20. Ra5 {[%emt 0:00:30]} Kf7 {[%emt 0:00:00]} 21. Bf3 {[%emt 0:00:30]} Rac8 {[%emt 0:00:00]} 22. Rxa7 {[%emt 0:00:00]} Rc7 {[%emt 0:00:00]} 23. Ra6 {[%emt 0:01:00]} b4 {[%emt 0:00:00]} 24. Qa5 {[%emt 0:06:44]} Rd8 {[%emt 0:00:00]} 25. Qxb4 {[%emt 0:01:02]} Bf8 {[%emt 0:11:45]} 26. Qa5 {[%emt 0:01:59]} Rcc8 {[%emt 0:00:00]} 27. Re1 {[%emt 0:00:00]} Nc7 {[%emt 0:00:00]} 28. Rc6 {[%emt 0:03:20]} Ne8 {[%emt 0:00:00]} 29. Rxc8 {[%emt 0:00:37]} Qxc8 {[%emt 0:00:00]} 30. Bd5+ {[%emt 0:00:59]} Kg7 {[%emt 0:00:00]} 31. Bxc4 {[%emt 0:00:58]} e5 {[%emt 0:00:00]} 32. Bb3 Bd6 {[%emt 0:00:00]} 33. Qd5 {[%emt 0:05:58]} g5 {[%emt 0:13:31]} 34. Qf7+ {[%emt 0:01:39]} Kh6 {[%emt 0:00:00]} 35. h4 {[%emt 0:00:30]} 1-0